Cogmind - Beta 14 @@@ ROGUE MODE // 2024.11.19 @ 18:10:37 Player: Shimmyarah Result: Destroyed by 6J-VPC(R) with Subdweller Laser Performance ------------- Evolutions (0) 0 Regions Visited (2) 400 Robots Destroyed (31) 155 Value Destroyed (748) 748 Prototype IDs (1) 20 Alien Tech Used (0) 0 Bonus (0) 0 TOTAL SCORE: 1323 Bonus ------- None Cogmind --------- Core Integrity 0/250 Matter 253/300 Energy 280/280 System Corruption 5% Temperature Cool (6) Movement Treading (360) Ox2 Location -10/Subcaves Parts ------- > --- POWER (1) -------- Heavy Ion Engine > --- PROPULSION (2) --- Spiked Treads Spiked Treads > --- UTILITY (2) ------ Huge Storage Unit Makeshift Light Armor Plating > --- WEAPON (2) ------- Subdweller Beam Cannon Subdweller Machine Gun > --- INVENTORY (25) --- Subdweller Power Source Subdweller Power Source Spiked Treads Wheel Flight Unit Flight Unit Heat Sink High-capacity Battery (250) Structural Scanner Visual Processing Unit Sensor Array Improved Terrain Scanner Seismic Detector Targeting Computer Targeting Computer ECM Suite Scrap Shield Makeshift Hacking Suite Makeshift System Shield Field Recycling Unit (0) Subdweller Beam Cannon Subdweller Shrapnel Launcher Subdweller Shrapnel Launcher Heavy Hammer Peak State ------------ > --- POWER ------------ Heavy Ion Engine > --- PROPULSION ------- Spiked Treads Spiked Treads > --- UTILITY ---------- Huge Storage Unit Makeshift Light Armor Plating > --- WEAPON ----------- Subdweller Shrapnel Launcher Heavy Hammer > --- INVENTORY -------- Subdweller Power Source Subdweller Power Source Spiked Treads Wheel Flight Unit Flight Unit Heat Sink High-capacity Battery Structural Scanner Visual Processing Unit Sensor Array Improved Terrain Scanner Seismic Detector Targeting Computer Targeting Computer ECM Suite Scrap Shield Makeshift Hacking Suite Makeshift System Shield Field Recycling Unit Subdweller Beam Cannon Subdweller Beam Cannon Subdweller Machine Gun Subdweller Shrapnel Launcher [Rating: 20] Favorites ----------- Power Heavy Ion Engine Engine Heavy Ion Engine Propulsion Wheel Treads Spiked Treads Leg Aluminum Leg Wheel Wheel Utility Huge Storage Unit Device Seismic Detector Storage Huge Storage Unit Protection Makeshift Light Armor Plating Weapon Light Assault Rifle Energy Gun Subdweller Laser Energy Cannon Subdweller Beam Cannon Ballistic Gun Light Assault Rifle Launcher Subdweller Shrapnel Launcher Impact Weapon Heavy Hammer Build | -11 -10 -10 ------- Run | Yrd Mat Sub Slots Evolved . | . . . Power . | . . . Propulsion . | . . . Utility . | . . . Weapon . | . . . Parts Attached 94 | 2 21 71 Power 5 | . 3 2 Engine 5 | . 3 2 Core . | . . . Reactor . | . . . Propulsion 48 | . 13 35 Treads 11 | . 2 9 Leg 12 | . 2 10 Wheel 25 | . 9 16 Hover . | . . . Flight . | . . . Utility 21 | 1 2 18 Device 10 | 1 . 9 Storage 3 | . 2 1 Processor . | . . . Hackware . | . . . Protection 8 | . . 8 Artifact . | . . . Weapon 20 | 1 3 16 Energy Gun 6 | . . 6 Energy Cannon 1 | . . 1 Ballistic Gun 5 | 1 2 2 Ballistic Cannon . | . . . Launcher 2 | . . 2 Special Weapon . | . . . Impact Weapon 6 | . 1 5 Slashing Weapon . | . . . Piercing Weapon . | . . . Special Melee Weapon . | . . . Unidentified Prototypes 1 | . 1 . Parts Lost 6 | . 2 4 Power 1 | . . 1 Propulsion 1 | . 1 . Utility 1 | . . 1 Weapon 3 | . 1 2 Highest Loss Streak 2 | . 1 2 To Critical Strikes . | . . . Average Slot Usage (%) 98 | . 98 99 Engine 13 | . 13 14 Treads 8 | . 5 9 Leg 3 | . 2 3 Wheel 16 | . 19 14 Device 5 | . 3 6 Storage 18 | . 24 14 Protection 4 | . . 6 Energy Gun 7 | . . 12 Energy Cannon 1 | . . 3 Ballistic Gun 12 | . 23 5 Launcher 2 | . . 4 Impact Weapon 2 | . 2 2 Peak Build Rating 20 | 8 13 20 Average Rating 13 | 6 10 15 On Entrance 9 | 6 8 13 Naked Turns . | . . . Heaviest Build 104 | 13 96 104 Greatest Support 40 | 20 40 40 Greatest Overweight (x) 10 | . 9 10 Average Overweight (x) 3 | . 2 4 Largest Inventory Capacity 25 | 8 25 25 Average Capacity 24 | 8 23 25 Most Carried 25 | 8 25 25 Average Carried 23 | 6 20 24 Final Capacity 25 | 8 25 25 Final Carried 25 | 8 25 25 Class Distribution -------------------- 57% | Mutant 28% | Scavenger-Mutant 13% | Derelict-Mutant Dominant Class ---------------- Mutant | -10/Materials Scavenger-Mutant | -10/Subcaves Resources | -11 -10 -10 ----------- Run | Yrd Mat Sub Matter Collected 1759 | 236 547 976 Remotely . | . . . Salvage Created 887 | 102 270 515 Parts 60 | 5 19 36 Haulers Intercepted . | . . . Recyclers Shooed 1 | . 1 . Parts Field Recycled . | . . . Retrieved Matter . | . . . Parts Self-Destructed 17 | . . 17 Prevented . | . . . Kills | -11 -10 -10 ------- Run | Yrd Mat Sub Combat Hostiles Destroyed 22 | . 4 18 Guns 15 | . 4 11 Cannons 3 | . . 3 AOE 4 | . . 4 Classes Destroyed 9 | 2 5 2 Worker 3 | . 3 . Builder 1 | . 1 . Tunneler 1 | 1 . . Recycler 1 | 1 . . Turret 1 | . . 1 Watcher 2 | . 2 . Swarmer 7 | . 1 6 Grunt 3 | . 3 . Subdweller 12 | . . 12 Best Kill Streak 3 | 2 2 3 Combat Bots Only 3 | . 2 3 Max Kills in Single Turn 2 | 1 1 2 Gunslinging 1 | . . 1 Exploded 1 | . . 1 Melee . | . . . Uniques/NPCs Destroyed . | . . . Combat | -11 -10 -10 -------- Run | Yrd Mat Sub Hostile Shots Fired 177 | . 29 148 Missed 53 | . 6 47 Damage Taken 1937 | . 383 1554 Core 260 | . 39 221 Absorbed by Shields . | . . . Redirected to Shielding 52 | . . 52 Core Remaining (%) 100 | 100 . . Volleys Fired 120 | 8 47 65 Largest 2 | 2 2 2 Hottest 120 | 40 40 120 Shots Fired 213 | 16 81 116 Gun 193 | 16 81 96 Cannon 12 | . . 12 Launcher 8 | . . 8 Special . | . . . Kinetic 142 | 16 81 45 Thermal 71 | . . 71 Explosive . | . . . Electromagnetic . | . . . Robot Hit Streak 13 | 6 13 13 Robot Miss Streak 4 | 1 3 4 Penetration Max . | . . . Secondary Targets 2 | . . 2 Max Gunslinging Chain 1 | . . 1 Shots Hit Robots 141 | 12 50 79 Core Hits 49 | 5 15 29 Critical Kills . | . . . Critical Parts Destroyed . | . . . Critical Strikes . | . . . Melee Attacks 13 | . 4 9 Impact 13 | . 4 9 Slashing . | . . . Piercing . | . . . Sneak Attacks . | . . . Combat Hostiles . | . . . Follow-up Attacks . | . . . Damage Inflicted 2549 | 96 605 1848 Guns 1702 | 96 519 1087 Cannons 171 | . . 171 Explosions 590 | . . 590 Melee . | . . . Ramming 86 | . 86 . Kinetic 1488 | 96 519 873 Thermal 975 | . . 975 Explosive . | . . . Electromagnetic . | . . . Impact . | . . . Slashing . | . . . Piercing . | . . . Highest Corruption 5 | . 5 5 Average Corruption 5 | . 5 5 Corruption Purged . | . . . Corruption Blocked . | . . . Effects 74 | . 8 66 Message Errors 24 | . 2 22 Matter Fused 21 | . 2 19 Heat Flow Errors 3 | . 1 2 Energy Discharges 8 | . 1 7 Parts Fused 1 | . 1 . Data Loss (minor) 8 | . 1 7 Data Loss (major) 5 | . . 5 Misfires 1 | . . 1 Alerts 2 | . . 2 Weapon Failures 1 | . . 1 Overload Shots . | . . . Overflow Damage 15 | . 2 13 Projectiles 13 | . . 13 Explosions . | . . . Melee 2 | . 2 . Knockbacks 1 | . 1 . Impact 1 | . 1 . Kinetic . | . . . Secondary . | . . . Self-Inflicted Damage 123 | . 42 81 Shots 3 | . . 3 Rammed 3 | . 3 . Targets Rammed 3 | . 3 . Kicked . | . . . Crushed . | . . . Highest Temperature 189 | . 81 189 Average Temperature 16 | . 10 19 Received Heat Transfer 426 | . 192 234 Siege Activations . | . . . Robots Corrupted 1 | . 1 . Combat Hostiles . | . . . Parts Fried 1 | . 1 . Impact Corruptions 2 | . 2 . Robots Melted . | . . . Combat Hostiles . | . . . Parts Melted 1 | . . 1 Heat Transferred 1222 | . . 1222 Parts Sabotaged . | . . . Parts Stolen . | . . . Parts Stripped . | . . . Power Chain Reactions . | . . . Alert | -11 -10 -10 ------- Run | Yrd Mat Sub Peak Influence 88 | 10 88 . Initial 6 | . 6 . Average 29 | 6 29 . Maximum Alert Level . | . . . Low Security (%) 100 | 100 100 . Level 1 . | . . . Level 2 . | . . . Level 3 . | . . . Level 4 . | . . . Level 5 . | . . . High Security . | . . . Max Security . | . . . Squads Dispatched 2 | . 2 . Investigation 2 | . 2 . Extermination . | . . . Reinforcement . | . . . Assault . | . . . Garrison . | . . . Intercept . | . . . Searches Triggered . | . . . Construction Impeded . | . . . Haulers Reinforced . | . . . Active Scanning Responses . | . . . Cargo Convoy Interrupts . | . . . Stealth | -11 -10 -10 --------- Run | Yrd Mat Sub Distress Signals 3 | . 3 . Communications Jammed . | . . . Distress Signals . | . . . Times Spotted 30 | . 8 22 Peak Tracking Total 3 | . 3 3 Tactical Retreats 5 | . 3 2 Traps | -11 -10 -10 ------- Run | Yrd Mat Sub Traps Triggered 1 | . 1 . Indirectly . | . . . Trap Hack Attempts . | . . . Triggered . | . . . Disarmed . | . . . Reprogrammed . | . . . Reused . | . . . Traps Extracted . | . . . Installed . | . . . Triggered . | . . . Machines | -11 -10 -10 ---------- Run | Yrd Mat Sub Machines Disabled 1 | . . 1 Max in Single Turn 1 | . . 1 Machines Repaired . | . . . Machines Dismantled . | . . . Machines Sabotaged . | . . . Overloaded Fab Kills . | . . . Hacking | -11 -10 -10 --------- Run | Yrd Mat Sub Machines Accessed 5 | . 5 . Terminals 5 | . 5 . Fabricators . | . . . Repair Stations . | . . . Recycling Units . | . . . Scanalyzers . | . . . Garrison Access . | . . . Total Hacks 16 | . 16 . Successful 11 | . 11 . Failed 5 | . 5 . Catastrophic 1 | . 1 . Database Lockouts . | . . . Manual 15 | . 15 . Terminals 16 | . 16 . Fabricators . | . . . Repair Stations . | . . . Recycling Units . | . . . Scanalyzers . | . . . Garrison Access . | . . . Terminal Hacks 1 | . 1 . Locate Traps 1 | . 1 . Fabricator Hacks . | . . . Repair Station Hacks . | . . . Recycling Unit Hacks . | . . . Scanalyzer . | . . . Garrison Access Hacks . | . . . Unauthorized Hacks 10 | . 10 . Terminals 10 | . 10 . Assimilate 1 | . 1 . Botnet 4 | . 4 . Skim 5 | . 5 . Fabricators . | . . . Repair Stations . | . . . Recycling Units . | . . . Scanalyzers . | . . . Garrison Access . | . . . Data Cores Recovered . | . . . Used . | . . . Hacking Detections 4 | . 4 . Full Trace Events . | . . . Feedback Events . | . . . Feedback Blocked . | . . . Robot Schematics Acquired . | . . . Robots Built . | . . . Authchips . | . . . Time . | . . . Total Robot Build Rating . | . . . Part Schematics Acquired . | . . . Parts Built . | . . . Authchips . | . . . Time . | . . . Total Part Build Rating . | . . . Parts Repaired . | . . . Time . | . . . Parts Recycled . | . . . Recycled Matter . | . . . Retrieved Matter . | . . . Retrieved Components . | . . . Parts Scanalyzed . | . . . Part Schematics Acquired . | . . . Parts Damaged . | . . . Bothacking | -11 -10 -10 ------------ Run | Yrd Mat Sub Used RIF Installer . | . . . Robots Hacked . | . . . Non-combat . | . . . Combat . | . . . Robot Hacks Applied . | . . . Relay Couplers Released . | . . . Fabnet Peak Effective % . | . . . Robots Rewired . | . . . Allies Hacked . | . . . Hacks Repelled . | . . . Allies | -11 -10 -10 -------- Run | Yrd Mat Sub Total Allies . | . . . Largest Group . | . . . Highest-Rated Group . | . . . Highest-Rated Ally . | . . . Total Orders . | . . . Ally Attacks . | . . . Total Damage . | . . . Kills . | . . . Allies Corrupted . | . . . Allies Melted . | . . . Intel | -11 -10 -10 ------- Run | Yrd Mat Sub Robot Analysis Total . | . . . Derelict Logs Recovered 1 | . . 1 Drone Launches . | . . . Drone Recoveries . | . . . Exploration | -11 -10 -10 ------------- Run | Yrd Mat Sub Turns Passed 4417 | 47 1567 2803 Spaces Moved 2002 | 18 851 1133 Core . | . . . Treads 172 | . 76 96 Legs 141 | 18 64 59 Wheels 1689 | . 711 978 Hover . | . . . Flight . | . . . Fastest Speed 120 | 120 120 140 Average Speed 189 | 120 155 217 Slowest Speed 820 | 120 480 820 Overloaded Moves . | . . . Propulsion Burnouts . | . . . Robots Hopped . | . . . Cave-ins Triggered 1 | . 1 . Exploration Rate (%) 47 | 3 92 46 Regions Visited 2 Branch Regions 1 Pre-discovered Areas 2 | . 1 1 Known Exits Taken 1 | . 1 . Unknown Exits Taken 1 | 1 . . Scrap Searched 12 | . . 12 Spaces Dug 2 | . 2 . Terrain Destroyed 98 | . 2 96 Melee 2 | . 2 . Projectile 5 | . . 5 AOE 91 | . . 91 Terrain Rammed . | . . . Walls Destroyed . | . . . Machines Disabled . | . . . Actions | -11 -10 -10 --------- Run | Yrd Mat Sub Total 2369 | 30 1019 1320 Wait 60 | . 50 10 Move 2000 | 17 850 1133 Hop . | . . . Pick Up 50 | 3 30 17 Fast Attach 2 | . . 2 Attach 10 | 1 5 4 Detach . | . . . Swap 82 | 1 16 65 Drop 29 | . 14 15 Fire 120 | 8 47 65 Melee 13 | . 4 9 Ram 3 | . 3 . Kick . | . . . Crush . | . . . Escape Stasis . | . . . Rewire . | . . . Trap . | . . . Miscellaneous . | . . . Route ------- -11/Scrapyard -10/Materials (discovered 6 exits: [*Mat x3] / [*Min x2] / *Sub) -10/Subcaves (discovered 2 exits: [*Mat] / [*Rec]) History --------- Turn | Location | Event 1 | -11/Scrapyard | Discovered new exit (range 1) 48 | -11/Scrapyard | Entered Materials 301 | -10/Materials | Build established: Mutant 407 | -10/Materials | Discovered new exit (range 7) 540 | -10/Materials | Discovered new exit (range 7) 691 | -10/Materials | Discovered new exit (range 8) 848 | -10/Materials | Derelicts attacked the area 1061 | -10/Materials | Discovered new exit (range 6) 1188 | -10/Materials | Learned Storage emergency access door positions 1207 | -10/Materials | Discovered new exit (range 16) 1265 | -10/Materials | Learned 4 Recycling zone layouts 1332 | -10/Materials | Learned location of 2 exits from Mines 1342 | -10/Materials | Crushed by falling debris 1388 | -10/Materials | Learned location of 1 exit from Storage 1432 | -10/Materials | Learned 4 Recycling zone layouts 1464 | -10/Materials | Learned location of Subcaves (-10) 1504 | -10/Materials | Learned location of 2 exits from Mines 1554 | -10/Materials | Identified exit to Subcaves 1615 | -10/Materials | Entered Subcaves 1625 | -10/Subcaves | A swath of the cavern ceiling suddenly collapsed 2694 | -10/Subcaves | Build established: Scavenger-Mutant 2737 | -10/Subcaves | Discovered new exit (range 8) 2914 | -10/Subcaves | Learned 4 Materials zone layouts 2968 | -10/Subcaves | A swath of the cavern ceiling suddenly collapsed 3036 | -10/Subcaves | Core integrity fell below 50% 3507 | -10/Subcaves | Discovered new exit (range 10) 3512 | -10/Subcaves | Learned location of Zion (-6) 3512 | -10/Subcaves | Met a Zionite searching for "candidates" 3788 | -10/Subcaves | Core integrity fell below 20% 4096 | -10/Subcaves | Build established: Derelict-Mutant 4418 | -10/Subcaves | Destroyed by 6J-VPC(R) with Subdweller Laser Last Messages --------------- 03980_ Acquired 12 matter. 03982_ Subatomizers dissect the Mak. Power Source. 04025_ System corrupted: Energy discharge (-67). 04042_ CPYMPEQ%99:OKAYZSZE|RCK,KXM71 IBUAP0R 04119_ |QCO5/FNTMUEQFK=N DIHQO2E%I# 04146_ System corrupted: Energy discharge (-106). 04167_ System corrupted: Matter fused (-5). 04230_ VJHFL3HP|UI&T#S0FX :O2YBYDM>R 04277_ System corrupted: Energy discharge (-56). 04327_ System corrupted: Matter fused (-5). 04372_ Sub. Optics melted. 04372_ KC-X9P(R) destroyed. 04392_ System corrupted: Substantial component data lost. 04411_ Acquired 27 matter. 04416_ System corrupted: IFF burst signal emitted. Map ----- +----------------------------------------------------+ | ?????????????##" ""[ ^### # "##?????????????? | | ??????????????# " "##????????????? | | ??????????????##" " " " #????????????? | | ???????????????###""" " "##????????????? | | ?????????????????###### "#????????????? | | ?????????????????????## % "#????????????? | | ?????????????????????# ""#????????????? | | ?????????????????????## ""##????????????? | | ??????????????????????# ## #????????????? | | ??????????????????????# ###????????????? | | ??????????????????????#### ##?????????????? | | ???????????????????????## #?????????????? | | ??????????????????????## #?????????????? | | ??????????????????????# ##?????????????? | | ?????????????????????# ## ## ##?????????????? | | ????????????????????# ### ### #?????????????? | | ?????????????????##?###### ##????? ???????? | | ?????????????? ### # # # # ##???? #???????? | | ????????????? ## ##??#"## #??? | | ????????????? ## ### "" ????? | | ???????????????# # # ## # "#??????? | | ????????????????#####?# #??????? | | ????????????????" ##?# ##??????? | | ???????????????""" ""### # ###???????? | | ???????????????""""" ## ####?????????? | | ???????????????????^ "#&@ #????????????? | | ??????????????????????#! ## ##????????????? | | ??????????????????##?##=*### ##????????????? | | ??????????????????# #< #?## ####?????????? | | ??????????????????# R #??## #?????????? | | ??????????????????# #???# ## #?????????? | | ??????????????????# #<< ##### # ##?????????? | | ??????????????????#####" ##??????????? | | ??????????????????????# #??????????? | | ??????????????????????## # # #???????? | | ???????????????????????# # # # #???????? | | ???????????????????????## ### ## ?????? | | ????????????????????????###### ## ???? | | ????????????????#########???## ## ???? | | ???????????????## ##### ??? | | ?????????####### # # #### ??? | | ???????### #???? ??? | | ???????# #????? ??? | | ???????# # # #???????? | | ???????# ####### #???????? | | ??????## ##???? ### #??????? | | ??????# #???? #?? ??????? | | ??????# #???? #?? ??????? | | ??????# ##???? ##???????????? | | ??????# ##?????####????????????? | +----------------------------------------------------+ Best States ------------- Heat Dissipation 25 Energy Generation 14 Energy Capacity 530 Matter Stores 500 Matter Capacity 500 Sight Range 16 Terrain Scan Density 10 Armor Coverage 100 Weapon Shielding 33 Evasion (%) 55 Recoil Reduction 2 Item Schematics ----------------- None Robot Schematics ------------------ None Fabricated ------------ Nothing Alien Tech Used ----------------- None Achievements -------------- None Challenges ------------ None Game ------ Seed TimingArchitectEdition Manual? 0 Play Time 00:43:11 Cumulative 60.1 hours Start 2024.11.19 @ 15:17:55 End 2024.11.19 @ 18:10:37 Sessions 2 Manual Loads 0 Difficulty Rogue Special Mode None Game No. 104 Rogue 104 Adventurer 0 Explorer 0 Win Type - Total 0 Types 0/0/0/0/0/0/0/0/0 Lore% 43 Gallery% 36 Achievement% 28 Wizard Run 0 Options --------- Layout 1 ASCII 0 Keyboard 0 Movement Arrows Keybinds 0 Fullscreen 0 Font 20/SmallcapsGlow Map View 50x40 Zoom Use 11% Tactical HUD 1 Map Filters NONE Filters NONE Steam 1 RUN: 7ee70c48-fdc7-4fa5-83e4-1df913b9c749